bitfinex-derivatives/quotes_ETHF0:USTF0_20241231
["timestamp","ask_amount","ask_price","bid_price","bid_amount"]
[1735685980785,4.9959537,3341.7,3341.4,3.50762]
[1735685982086,0.2998,3341.7,3341.6,0.29981]
[1735685984077,0.29982,3341.6,3341.5,0.29981]
[1735685984982,0.29982,3341.6,3341.4,3.2078]
[1735685984983,0.2998,3341.7,3341.6,0.2998]
[1735685988071,2.34074493,3342.1,3341.4,3.2078]
[1735685988275,0.29979,3341.8,3341.7,0.29979]
[1735685988571,2.34074493,3342.1,3341.4,3.2078]
[1735685988981,2.34074493,3342.1,3341.7,0.29978]
[1735685988982,0.29979,3341.8,3341.7,0.29978]
[1735685993086,0.30225166,3341.8,3341.7,0.29978]
[1735685994678,0.00246166,3341.8,3341.7,0.29978]
[1735685995385,0.30225166,3341.8,3341.7,0.29978]
[1735685997482,0.00246166,3341.8,3341.7,0.29978]
[1735686000289,0.00246166,3341.8,3341.7,0.44232787]
[1735686000691,0.30225166,3341.8,3341.7,0.44232787]
[1735686000887,0.00246166,3341.8,3341.7,0.44232787]
[1735686001111,0.30225166,3341.8,3341.7,0.14254787]
[1735686001284,1.46565166,3341.8,3341.7,0.14254787]
[1735686002087,0.29981,3341.6,3341.5,3.2078]
[1735686002589,1.324,3341.7,3340.7,4.68183574]
[1735686002795,0.74952,3341.6,3340.7,5.43154574]
[1735686003095,0.29986,3341.0,3340.9,0.29986]
[1735686004092,2.34074493,3341.4,3340.6,0.5758]
[1735686004296,2.64057493,3341.4,3341.3,0.29983]
[1735686004988,3.499655,3341.4,3340.9,3.2078]
[1735686005193,0.29985,3341.2,3341.1,0.29984]
[1735686005587,0.29985,3341.2,3341.1,0.31506695]
[1735686006390,0.29984,3341.2,3341.1,0.07035512]
[1735686007198,0.29984,3341.2,3341.1,0.37020512]
[1735686007395,2.34316838,3341.4,3341.1,0.07035512]
[1735686007796,2.34316838,3341.4,3341.1,0.37020512]
[1735686007797,2.34316838,3341.2,3341.1,0.37020512]
[1735686009300,2.64296838,3341.7,3341.6,0.29981]
[1735686010501,2.34316838,3341.7,3341.6,0.37016512]
[1735686010891,2.34316838,3341.7,3341.6,0.29981]
[1735686011094,2.34316838,3341.7,3341.6,0.41120509]
[1735686012001,2.34563004,3341.8,3341.6,0.11139509]
[1735686012301,2.34563004,3341.8,3341.7,0.2998]
[1735686012995,2.34563004,3341.8,3341.7,0.41119509]
[1735686014800,2.64542004,3341.8,3341.7,0.41119509]
[1735686015102,0.30225166,3341.8,3341.7,0.45158177]
[1735686016403,0.30225166,3341.8,3341.7,0.15178177]
[1735686016594,0.87205166,3341.8,3341.7,0.15178177]
[1735686017698,1.32201929,3341.8,3341.7,0.15178177]
[1735686020294,5.65771939,3341.8,3341.7,0.15178177]
[1735686020495,5.65771939,3341.8,3341.7,0.17587069]
[1735686020803,0.29988,3340.8,3340.7,4.68183574]
[1735686021299,0.29988,3340.8,3340.7,4.98172574]
[1735686021917,0.29989,3340.7,3340.6,3.50769]
[1735686022909,0.29989,3340.7,3340.6,3.5077]
[1735686023103,0.29989,3340.7,3340.6,3.52467569]
[1735686023297,0.29989,3340.7,3340.6,0.39680052]
[1735686024010,0.29989,3340.7,3340.6,0.43407916]
[1735686024514,2.64720841,3340.7,3340.6,0.43407916]
[1735686025803,2.64720841,3340.7,3340.6,0.73397916]
[1735686026707,2.64720841,3340.7,3340.6,0.43407916]
[1735686026908,0.29989,3340.7,3340.6,0.43407916]
[1735686028208,2.64720841,3340.7,3340.6,0.43407916]
[1735686028611,2.64720841,3340.7,3340.6,0.4723212]
[1735686032914,0.29989,3340.7,3340.6,0.4723212]
[1735686034618,4.27103299,3340.7,3340.6,0.4723212]
[1735686035608,0.75005537,3340.7,3340.6,0.4723212]
[1735686036908,0.29989,3340.7,3340.6,0.4723212]
[1735686038513,0.75005537,3340.7,3340.6,0.4723212]
[1735686039652,4.26515716,3340.7,3340.6,0.4723212]
[1735686041819,0.359,3340.4,3339.1,0.30002]
[1735686042020,0.3,3339.4,3339.3,0.5711]
[1735686042217,1.215,3339.6,3339.2,4.68183574]
[1735686042427,0.30001,3339.3,3339.2,4.68183574]
[1735686043513,0.30001,3339.3,3339.0,3.2078]
[1735686043720,0.30003,3339.1,3339.0,3.2078]
[1735686044023,2.88429548,3339.5,3339.0,3.2078]
[1735686044224,2.88429548,3339.5,3339.1,0.5365]
[1735686044225,0.56089548,3339.5,3339.1,0.5365]
[1735686044418,0.12090664,3339.6,3339.5,0.29999]
[1735686044617,0.12090664,3339.6,3339.4,3.2078]
[1735686044618,3.92923683,3339.8,3339.7,0.29998]
[1735686045122,0.29994,3340.2,3340.0,0.29994]
[1735686045721,0.29994,3340.1,3340.0,0.29994]
[1735686046321,0.29995,3340.0,3339.9,3.50776]
[1735686046517,0.29995,3340.0,3339.9,3.2078]
[1735686050323,0.30001,3339.4,3339.2,3.50782]
[1735686050516,0.30001,3339.3,3339.2,3.2078]
[1735686050916,0.30001,3339.3,3339.2,3.50782]
[1735686051314,0.30001,3339.3,3339.2,3.2078]
[1735686054021,1.215,3339.5,3338.7,3.2078]
[1735686054218,0.30006,3338.8,3338.7,3.2078]
[1735686055820,0.30006,3338.8,3338.2,0.75028]
[1735686055821,0.3001,3338.3,3338.2,3.2078]
[1735686056029,0.3001,3338.3,3338.2,3.50791]
[1735686058518,0.30007,3338.7,3338.5,0.30008]
[1735686058722,0.3001,3338.4,3338.3,0.30009]
[1735686061927,0.3001,3338.3,3338.2,3.50791]
[1735686062128,0.3001,3338.3,3338.2,3.2078]
[1735686065039,0.30012,3338.1,3338.0,0.30013]
[1735686065556,0.75025,3338.4,3337.8,3.2078]
[1735686065731,0.30014,3337.9,3337.8,3.2078]
[1735686065936,0.30017,3337.6,3337.5,0.84817]
[1735686066535,1.31269,3338.3,3337.5,0.548]
[1735686066740,0.30016,3337.8,3337.7,0.30015]
[1735686067239,1.31269,3338.3,3337.5,0.548]
[1735686067537,1.31269,3338.3,3337.7,0.30015]
[1735686067538,0.30016,3337.8,3337.7,0.30015]
[1735686067738,0.30016,3337.8,3337.7,3.50795]
[1735686068747,0.30016,3337.8,3337.7,3.50796]
[1735686073037,1.31269,3338.3,3337.7,3.2078]
[1735686073250,3.2078,3338.6,3337.7,8.2078]
[1735686073438,0.30011,3338.3,3338.2,0.3001]
[1735686075742,0.75021,3338.6,3338.1,3.2078]
[1735686075966,0.75021,3338.6,3338.1,3.50791]
[1735686075967,0.30011,3338.2,3338.1,3.50791]
[1735686079442,0.30011,3338.2,3338.1,3.2078]
[1735686080148,0.75024,3338.5,3337.7,3.2078]
[1735686080348,0.30014,3338.0,3337.9,0.30013]
[1735686084549,0.30013,3338.1,3338.0,0.30012]
[1735686087156,0.5826,3338.2,3338.1,0.30012]
[1735686087454,0.5826,3338.2,3338.1,3.50792]
[1735686089651,0.88271,3338.2,3338.1,3.50792]
[1735686091348,0.5337,3338.6,3338.5,0.30008]
[1735686091553,4.9709845,3339.3,3339.2,0.30002]
[1735686091848,4.6709645,3339.3,3339.2,0.30002]
[1735686092751,4.6709645,3339.3,3339.2,5.30002]
[1735686093654,0.5796,3340.2,3340.1,0.29994]
[1735686093655,5.5505045,3340.2,3340.1,0.29994]
[1735686095152,0.87954,3340.2,3340.1,0.29994]
[1735686096061,0.5796,3340.2,3339.9,3.2078]
[1735686096248,0.5381,3340.1,3339.5,7.88963574]
[1735686096449,0.29995,3340.0,3339.9,0.29996]
[1735686096644,0.5381,3340.1,3339.9,0.29996]
[1735686096854,0.29995,3340.0,3339.9,0.29996]
[1735686097159,0.83805,3340.1,3339.5,3.2078]
[1735686097458,0.5381,3340.1,3340.0,0.29995]
[1735686098458,0.5796,3340.2,3339.9,3.2078]
[1735686098781,0.5796,3340.2,3340.1,0.29994]
[1735686103362,0.5603,3340.6,3339.9,3.2078]
[1735686103667,0.5603,3340.6,3340.5,0.29991]
[1735686103864,1.1178,3340.9,3340.4,3.2078]
[1735686104067,1.41767,3340.9,3340.8,0.29988]
[1735686104264,1.41767,3340.9,3340.4,3.2078]
[1735686104467,1.41767,3340.9,3340.7,0.29988]
[1735686105365,0.29988,3340.8,3340.7,0.29988]
[1735686106665,0.29988,3340.8,3340.4,3.2078]
[1735686106864,1.1178,3340.9,3340.6,0.29989]
[1735686107065,0.29989,3340.7,3340.6,0.29989]
[1735686112374,0.29989,3340.7,3340.1,0.548]
[1735686112375,0.29993,3340.2,3340.1,0.548]
[1735686112576,0.3,3339.5,3339.3,4.68183574]
[1735686112770,0.74988,3340.0,3339.3,4.68183574]
[1735686112967,1.3856,3339.4,3339.3,3.79693574]
[1735686113172,1.3856,3339.4,3339.2,3.79693574]
[1735686113472,0.30001,3339.3,3339.2,3.79693574]
[1735686114563,1.0856,3339.4,3338.9,3.2078]
[1735686114772,0.30004,3339.0,3338.9,3.2078]
[1735686117076,0.30002,3339.2,3338.8,3.2078]
[1735686117276,0.5602,3339.3,3338.8,3.2078]
[1735686117485,0.30005,3338.9,3338.8,3.2078]
[1735686119069,0.5602,3339.3,3338.8,3.2078]
[1735686119373,3.50497664,3340.1,3339.2,3.2078]
[1735686119575,0.3,3339.5,3339.3,0.30001]
[1735686120779,0.30001,3339.4,3339.2,3.50782]
[1735686121466,0.74991,3339.9,3339.2,3.2078]
[1735686121666,0.30001,3339.3,3339.2,3.2078]
[1735686123077,0.74997,3339.6,3339.0,0.85333]
[1735686123280,0.3,3339.5,3339.4,3.2078]
[1735686123873,0.5558,3340.0,3338.9,3.2078]
[1735686124179,0.30004,3339.0,3338.9,3.2078]
[1735686130482,0.30005,3338.9,3338.8,3.50785]
[1735686132275,0.30005,3338.9,3338.8,3.50786]
[1735686132674,0.30005,3338.9,3338.8,3.2078]
[1735686133174,0.30005,3338.9,3338.8,3.50786]
[1735686135177,0.5807,3339.2,3338.8,3.2078]
[1735686135376,0.30005,3339.0,3338.9,0.30004]
[1735686138085,0.30004,3339.1,3339.0,0.30003]
[1735686140185,3.2078,3339.6,3338.9,0.75012]
[1735686140392,0.30002,3339.3,3339.2,0.30001]
[1735686140691,1.1448,3339.5,3338.8,3.95795]
[1735686140889,0.30004,3339.2,3339.1,0.30003]
[1735686141792,0.30005,3339.0,3338.9,0.30003]
[1735686144094,0.30003,3339.3,3339.2,0.30001]
[1735686144394,0.30003,3339.3,3339.2,3.50781]
[1735686145199,0.30003,3339.3,3339.2,3.50782]
[1735686145687,0.30003,3339.3,3339.2,3.2078]
[1735686145893,0.5529,3339.7,3339.2,3.2078]
[1735686146200,0.29999,3339.6,3339.5,0.29999]
[1735686147896,0.85288,3339.7,3339.6,0.29999]
[1735686152090,0.5529,3339.7,3339.2,3.2078]
[1735686152402,0.30001,3339.4,3339.3,0.3]
[1735686174308,2.65236164,3339.4,3339.3,0.3]
[1735686179011,2.35235164,3339.4,3339.3,0.3]
[1735686179409,2.35235164,3339.4,3339.3,1.3919]
[1735686179805,2.35235164,3339.4,3339.3,7.5859]
[1735686180007,2.27390395,3339.5,3339.4,0.3]
[1735686180312,9.01e-06,3339.5,3339.4,4.37081077]
[1735686180507,9.01e-06,3339.5,3339.4,9.37081077]
[1735686180709,4.6709645,3340.4,3339.4,9.07081077]
[1735686181012,4.6709645,3340.4,3340.3,3.50772]
[1735686181611,4.9708745,3340.4,3340.3,3.50772]
[1735686181908,5.5532745,3340.4,3340.3,3.50772]
[1735686182108,0.88231,3340.4,3340.3,15.35861855]
[1735686183318,0.5824,3340.4,3340.3,15.35861855]
[1735686183516,0.5824,3340.4,3340.3,8.28362671]
[1735686183813,0.565,3340.8,3340.6,0.29989]
[1735686183814,0.2999,3340.7,3340.6,0.29989]
[1735686184013,0.8758,3340.7,3340.6,0.29989]
[1735686185009,0.5759,3340.7,3340.6,0.29989]
[1735686185209,0.565,3340.8,3340.7,0.29989]
[1735686186319,0.87936,3341.1,3341.0,0.29986]
[1735686186520,1.43186,3341.1,3341.0,0.29986]
[1735686187413,0.29986,3341.1,3341.0,0.29986]
[1735686187718,3.50765,3341.2,3341.1,0.29985]
[1735686188218,3.50764,3341.2,3341.1,0.29985]
[1735686188424,3.50765,3341.2,3341.1,0.29985]
[1735686188716,0.29983,3341.4,3341.2,0.29984]
[1735686188917,1.1562,3341.6,3341.2,0.29984]
[1735686189114,0.29983,3341.4,3341.2,0.29984]
[1735686189713,1.1562,3341.6,3341.2,0.29984]
[1735686190017,0.29983,3341.3,3341.2,0.29984]
[1735686190209,0.29983,3341.4,3341.2,0.29984]
[1735686190411,1.1562,3341.6,3341.5,0.29982]
[1735686190611,0.5525,3341.6,3341.5,3.50762]
[1735686191723,1.1158,3342.0,3341.9,0.29978]
[1735686192825,1.41557,3342.0,3341.8,0.29978]
[1735686193020,1.41557,3342.0,3341.5,3.2078]
[1735686193021,1.1158,3342.0,3341.5,3.2078]
[1735686193248,1.1158,3342.0,3341.8,0.29978]
[1735686194319,0.29978,3341.9,3341.8,0.29978]
[1735686194520,1.1158,3342.0,3341.5,3.2078]
[1735686194827,1.1158,3342.0,3341.9,0.29978]
[1735686195226,0.5573,3342.0,3341.9,3.50758]
[1735686195523,0.29973,3342.5,3341.9,3.2078]
[1735686195725,1.7487,3342.7,3342.3,0.29974]
[1735686196026,0.29973,3342.5,3342.4,0.29973]
[1735686196226,0.29974,3342.4,3342.2,0.29975]
[1735686196429,0.29973,3342.5,3342.3,0.29974]
[1735686196828,0.29974,3342.4,3342.2,0.29975]
[1735686197323,0.29974,3342.4,3342.3,0.29974]
[1735686198430,1.7487,3342.7,3342.3,0.29974]
[1735686198724,0.29973,3342.4,3342.3,0.29974]
[1735686198929,0.29973,3342.5,3342.3,0.29974]
[1735686199221,1.7487,3342.7,3341.9,5.02974146]
[1735686199459,0.29972,3342.6,3342.5,0.29972]
[1735686199726,1.7487,3342.7,3342.6,0.29972]
[1735686199928,2.04841,3342.7,3342.6,0.29972]
[1735686206431,1.7487,3342.7,3342.6,0.29972]
[1735686206631,2.04841,3342.7,3342.6,0.29972]
[1735686207226,1.7487,3342.7,3342.6,0.29972]
[1735686210526,1.1492,3342.7,3342.6,0.29972]
[1735686210729,1.82194146,3344.0,3342.5,5.02974146]
[1735686211030,0.86986,3343.4,3343.3,0.29965]
[1735686214237,0.86986,3343.4,3343.3,0.29672678]
[1735686214538,0.5702,3343.4,3342.3,3.2078]
[1735686214730,0.29971,3342.8,3342.7,0.2997]
[1735686215536,0.29973,3342.6,3342.5,0.29971]
[1735686216134,0.29974,3342.5,3342.4,0.29972]
[1735686216636,0.29974,3342.4,3342.3,0.29974]
[1735686220239,0.29976,3342.2,3342.1,0.29975]
[1735686222836,0.29975,3342.3,3342.2,0.29974]
[1735686225640,1.82194146,3342.3,3342.1,3.2078]
[1735686225940,0.2998,3341.8,3341.7,0.29979]
[1735686226146,0.74939,3342.2,3341.5,3.2078]
[1735686226447,1.1661,3341.7,3341.5,3.2078]
[1735686226635,0.90341,3341.6,3341.5,3.2078]
[1735686226942,0.29985,3341.2,3341.1,0.29985]
[1735686227644,3.50764,3341.3,3341.2,0.29984]
[1735686229145,3.50763,3341.3,3341.2,0.29984]
[1735686231247,0.29985,3341.2,3341.1,0.29984]
[1735686232141,1.82194146,3341.2,3340.5,4.4042]
[1735686232446,0.29991,3340.5,3340.4,0.29991]
[1735686232649,0.29991,3340.5,3340.1,9.43332245]
[1735686232650,0.29991,3340.4,3340.3,7.37491184]
[1735686232837,0.88041,3340.4,3340.3,7.07499184]
[1735686233041,0.88041,3340.4,3340.3,4.59939184]
[1735686233545,1.47321,3340.4,3340.3,4.59939184]
[1735686233743,1.1733,3340.4,3339.9,0.29995]
[1735686233944,0.29996,3340.0,3339.8,4.99284434]
[1735686234344,1.1733,3340.4,3339.8,4.99284434]
[1735686234648,0.29995,3340.0,3339.9,0.29996]
[1735686235446,0.29995,3340.1,3340.0,0.29995]
[1735686240152,3.2078,3340.2,3340.1,0.29994]
[1735686240450,3.2078,3340.8,3340.7,0.29989]
[1735686240654,0.29987,3341.0,3340.9,0.29986]
[1735686240840,3.2078,3341.3,3340.5,1.1903]
[1735686241048,0.29986,3341.1,3341.0,0.29985]
[1735686241247,3.2078,3341.3,3340.5,1.94005]
[1735686241446,0.29989,3340.8,3340.7,0.29988]
[1735686241749,0.2999,3340.6,3340.5,0.8904]
[1735686242151,0.586,3340.8,3340.1,0.6035]
[1735686242359,0.29993,3340.3,3340.2,0.29993]
[1735686245357,0.29994,3340.2,3340.1,0.29993]
[1735686246259,3.2078,3340.4,3340.0,1.2029]
[1735686246468,0.74984,3340.2,3339.1,3.95786]
[1735686246666,3.2078,3339.9,3339.4,0.5546]
[1735686246865,0.3,3339.5,3339.4,0.8546]
[1735686247461,3.2078,3339.9,3339.4,0.5546]
[1735686247662,0.29999,3339.7,3339.6,0.29998]
[1735686248867,0.3,3339.6,3339.5,0.29999]
[1735686249370,0.3,3339.5,3339.4,0.85459]
[1735686250063,0.29999,3339.7,3339.6,0.29998]
[1735686253662,0.3,3339.6,3339.5,0.29999]
[1735686254065,3.2078,3339.9,3339.6,0.29998]
[1735686254066,0.29999,3339.7,3339.6,0.29998]
[1735686259372,3.2078,3340.4,3339.8,0.29997]
[1735686259680,3.2078,3340.4,3340.3,0.29992]
[1735686259867,0.29995,3340.0,3339.9,1.7325]
[1735686260069,3.50775,3340.0,3339.9,0.5579]
[1735686260271,0.3,3339.4,3339.3,0.86481]
[1735686260479,0.3,3339.4,3339.3,1.42271]
[1735686260872,0.75,3339.5,3338.9,4.69288434]
[1735686261083,0.30004,3339.0,3338.9,4.99292434]
[1735686261276,3.2078,3339.2,3338.9,4.69288434]
[1735686261482,3.2078,3340.0,3339.1,5.02974146]
[1735686261777,3.2078,3340.0,3339.9,0.29996]
[1735686261980,3.2078,3340.6,3339.7,1.82194146]
[1735686262174,3.2078,3340.6,3340.5,0.29991]
[1735686262585,3.51161994,3340.7,3340.6,0.2999]
[1735686263387,0.29991,3340.5,3340.4,0.5571]
[1735686263586,0.74977,3340.5,3339.6,4.69288434]
[1735686263893,3.2078,3340.2,3340.1,0.29993]
[1735686264288,0.29993,3340.3,3340.2,0.29993]
[1735686264685,0.29997,3339.8,3339.7,0.586]
[1735686264984,0.29997,3339.8,3339.2,4.69288434]
[1735686264985,0.30001,3339.3,3339.2,4.69288434]
[1735686265187,3.50781,3339.3,3339.2,4.99290434]
[1735686265582,3.2078,3339.3,3339.2,4.99290434]
[1735686266095,0.30001,3339.3,3339.2,4.99290434]
[1735686266389,0.5794,3339.6,3338.9,0.5769]
[1735686266580,3.2078,3340.1,3339.2,0.75006]
[1735686266787,0.30001,3339.4,3339.0,0.7501]
[1735686266988,0.29999,3339.6,3339.5,0.29998]
[1735686267383,1.82194146,3340.0,3338.9,0.5769]
[1735686267585,0.30008,3338.7,3338.6,0.30007]
[1735686267784,0.30008,3338.6,3338.5,4.69288434]
[1735686268588,0.30007,3338.7,3338.6,0.30007]
[1735686269688,3.2078,3338.9,3338.3,0.5769]
[1735686269689,3.2078,3338.9,3338.3,3.14910146]
[1735686269896,3.2078,3339.3,3339.2,0.30001]
[1735686270196,3.2078,3339.3,3338.7,0.75017]
[1735686270197,0.30005,3338.9,3338.8,0.86405]
[1735686270493,3.50785,3338.9,3338.8,0.86405]
[1735686270689,3.2078,3338.9,3338.3,1.1328]
[1735686270883,0.3001,3338.4,3338.3,0.3001]
[1735686271087,0.75017,3338.7,3338.0,3.2078]
[1735686271387,0.30009,3338.5,3338.0,3.2078]
[1735686271586,0.30009,3338.5,3338.4,0.30009]
[1735686271786,0.3001,3338.4,3338.3,0.3001]
[1735686271989,0.30015,3337.8,3337.7,4.69288434]
[1735686272195,3.2078,3337.9,3337.6,4.69288434]
[1735686272492,3.2078,3337.9,3337.7,0.30015]
[1735686272493,0.30015,3337.8,3337.7,0.30015]
[1735686272996,3.2078,3337.9,3337.6,4.69288434]
[1735686272997,0.30016,3337.7,3337.6,4.99304434]
[1735686273190,0.30016,3337.7,3337.6,4.69288434]
[1735686273694,5.30016,3337.7,3337.6,4.69288434]
[1735686274187,0.30022,3337.0,3336.9,4.69288434]
[1735686274393,3.2078,3337.1,3336.9,4.69288434]
[1735686274597,0.30022,3337.0,3336.9,4.69288434]
[1735686274986,1.46102,3337.0,3336.9,4.69288434]
[1735686275207,6.82002,3337.0,3336.9,4.34e-06]
[1735686275391,0.65925,3336.7,3336.6,7.83852679]
[1735686275583,0.65925,3336.7,3336.4,11.79165307]
[1735686275584,6.57574146,3336.7,3336.4,11.79165307]
[1735686275788,0.30034,3335.7,3335.6,9.38800099]
[1735686276089,3.2078,3335.7,3335.6,9.38800099]
[1735686276395,5.33008146,3335.7,3335.6,9.38800099]
[1735686277193,10.68908146,3335.7,3335.6,9.38800099]
[1735686277492,3.50814,3335.7,3335.6,9.38800099]
[1735686277792,3.2078,3335.7,3334.5,0.573]
[1735686277992,3.2078,3334.6,3334.5,0.87344]
[1735686278198,5.02974146,3335.0,3334.5,0.573]
[1735686278396,3.50824,3334.6,3334.1,0.90167]
[1735686278699,3.2078,3334.6,3334.5,0.30044]
[1735686278899,3.5668,3335.1,3334.1,3.809]
[1735686279392,3.5668,3335.1,3334.8,0.30041]
[1735686280502,3.5668,3335.1,3334.9,0.30041]
[1735686280698,3.5668,3335.1,3334.8,0.30041]
[1735686281900,3.5668,3335.1,3334.9,0.3004]
[1735686282408,3.50819,3335.1,3334.7,0.30042]
[1735686282701,3.2078,3335.1,3334.9,0.3004]
[1735686282900,3.2078,3335.1,3334.8,1.43571]
[1735686283101,3.2078,3335.1,3334.8,1.1353]
[1735686283495,0.30041,3334.9,3334.3,0.30046]
[1735686283795,0.30043,3334.7,3334.3,0.30046]
[1735686284599,0.30043,3334.7,3334.2,0.5957]
[1735686284803,3.2078,3335.1,3334.2,0.5957]
[1735686285005,3.5082,3335.1,3334.8,0.30042]
[1735686285401,3.2078,3335.1,3334.9,0.30041]
[1735686285603,3.2078,3335.1,3334.2,0.5957]
[1735686285803,0.30042,3334.8,3334.5,0.30044]
[1735686286802,1.82194146,3334.6,3333.9,0.5955]
[1735686287104,0.30048,3334.2,3333.9,0.89599]
[1735686287404,0.30049,3334.1,3333.8,0.3005]
[1735686287601,0.30054,3333.5,3333.2,3.50835]
[1735686287800,0.30054,3333.5,3333.2,0.30056]
[1735686287997,1.82194146,3333.9,3332.7,3.2078]
[1735686288198,1.82194146,3333.9,3332.9,1.82194146]
[1735686288199,3.2078,3333.9,3332.9,1.82194146]
[1735686288403,0.30054,3333.5,3333.2,0.30056]
[1735686288597,5.02974146,3333.9,3332.9,0.30058]
[1735686288904,3.2078,3333.5,3332.6,3.7628]
[1735686289110,0.30063,3332.5,3332.4,0.585]
[1735686289594,0.30063,3332.5,3331.8,3.2078]
[1735686289595,0.30065,3332.2,3331.9,0.30067]
[1735686289794,1.82194146,3332.4,3331.7,0.30069]
[1735686290008,0.30067,3332.0,3331.5,0.5737]
[1735686290306,0.30069,3331.9,3331.7,0.3007]
[1735686290504,3.2078,3332.7,3331.8,3.2078]
[1735686290703,1.82194146,3332.6,3331.5,0.5737]
[1735686290900,0.30063,3332.5,3331.9,0.30068]
[1735686291107,1.82194146,3332.6,3331.5,0.5737]
[1735686291312,0.30065,3332.2,3331.7,0.30069]
[1735686291604,5.75155,3332.6,3331.5,0.5737]
[1735686291605,1.82194146,3332.6,3331.5,0.5737]
[1735686291837,3.2078,3332.7,3332.6,0.30062]
[1735686293707,3.2078,3332.7,3332.1,0.75166]
[1735686293708,2.35691583,3333.2,3332.4,3.2078]
[1735686293904,0.30054,3333.5,3333.2,0.30055]
[1735686294206,0.30054,3333.5,3333.3,0.30055]
[1735686294407,3.58091583,3333.6,3333.3,0.30055]
[1735686294610,3.58091583,3333.6,3333.5,0.30054]
[1735686295010,3.58091583,3333.6,3332.8,3.2078]
[1735686295210,0.30055,3333.4,3333.2,0.30056]
[1735686295405,0.30057,3333.2,3332.9,0.30058]
[1735686295602,0.30057,3333.2,3333.0,0.30058]
[1735686295903,0.30056,3333.2,3332.8,0.30059]
[1735686296098,0.30058,3333.1,3332.8,0.30059]
[1735686296310,0.30058,3333.1,3332.9,0.30059]
[1735686297002,3.2078,3333.3,3332.7,0.6141]
[1735686297206,3.2078,3333.3,3333.2,0.30056]
[1735686299201,3.2078,3333.7,3333.2,0.30056]
[1735686299402,3.2078,3334.2,3333.9,0.3005]
[1735686299602,0.30055,3333.4,3332.7,3.8219]
[1735686299796,0.30059,3333.0,3332.8,0.30059]
[1735686300010,3.2078,3333.4,3332.7,3.8219]
[1735686300311,3.2078,3333.9,3333.8,0.30051]
[1735686300508,3.2078,3333.9,3333.1,3.2078]
[1735686300808,0.30059,3333.0,3332.8,0.3006]
[1735686301007,0.30059,3333.0,3332.7,0.6141]
[1735686301404,3.2078,3333.3,3332.2,0.75162]
[1735686301405,2.35691583,3333.1,3332.2,3.2078]
[1735686301605,0.30064,3332.3,3332.2,3.2078]
[1735686302307,2.35691583,3332.7,3332.2,3.2078]
[1735686302502,2.35691583,3333.1,3332.3,0.75162]
[1735686302706,2.35691583,3333.1,3332.4,0.75159]
[1735686303007,0.30058,3333.1,3332.9,0.30058]
[1735686303212,0.30058,3333.1,3333.0,0.30058]
[1735686303412,2.35691583,3333.5,3332.7,0.5924]
[1735686303711,0.30058,3333.1,3332.9,0.30059]
[1735686304909,0.30058,3333.0,3332.9,0.30059]
[1735686305504,0.30058,3333.0,3332.7,0.5924]
[1735686305813,0.30058,3333.0,3332.9,0.30059]
[1735686306008,2.35691583,3333.1,3332.2,3.2078]
[1735686306204,0.30064,3332.3,3332.2,3.50845]
[1735686306807,2.93021583,3333.1,3332.2,3.2078]
[1735686307121,0.30062,3332.6,3332.5,0.30062]
[1735686307305,0.30062,3332.6,3331.9,1.33471]
[1735686307306,0.75155,3332.6,3331.9,0.88367]
[1735686307613,0.30067,3332.0,3331.9,0.88367]
[1735686307909,0.30067,3332.0,3331.9,0.583]
[1735686308412,3.2078,3332.5,3331.8,0.594]
[1735686308605,0.30068,3331.9,3331.8,0.594]
[1735686308912,3.10853583,3332.3,3331.6,0.3007]
[1735686309103,0.30072,3331.5,3331.4,3.2078]
[1735686309308,0.30072,3331.5,3330.7,3.2078]
[1735686309309,5.56471583,3331.5,3330.7,3.2078]
[1735686309610,5.56471583,3331.5,3327.9,2.21129559]
[1735686309611,3.2078,3331.4,3330.1,3.2078]
[1735686309810,0.30079,3330.7,3330.5,0.3008]
[1735686310002,8.95962,3331.4,3330.1,3.2078]
[1735686310202,3.2078,3331.0,3330.1,3.2078]
[1735686310402,0.30082,3330.4,3330.2,0.30083]
[1735686310605,5.21872,3331.0,3330.2,0.30083]
[1735686310800,5.21872,3331.0,3330.1,3.2078]
[1735686310801,0.3008,3330.6,3330.4,0.30081]
[1735686311016,0.30082,3330.4,3330.2,0.30083]
[1735686311315,0.30083,3330.2,3329.9,0.30086]
[1735686311510,0.30083,3330.2,3330.0,0.30085]
[1735686311803,3.50859,3330.8,3330.5,0.3008]
[1735686312006,0.75177,3331.7,3329.8,4.10171583]
[1735686312007,0.359,3331.8,3331.0,0.30075]
[1735686312201,0.359,3331.8,3330.2,2.35691583]
[1735686312202,3.2078,3331.7,3330.7,3.2078]
[1735686312406,0.30076,3331.1,3330.8,0.30077]
[1735686312813,3.2078,3331.3,3330.9,0.30076]
[1735686312814,0.30075,3331.2,3330.9,0.30076]
[1735686313006,0.30078,3330.8,3330.7,3.2078]
[1735686313609,0.30081,3330.5,3330.2,0.30083]
[1735686313911,0.75186,3331.2,3329.9,3.2078]
[1735686314544,0.30077,3330.9,3330.6,0.30079]
[1735686314706,3.2078,3331.3,3330.1,3.2078]
[1735686314906,0.30078,3330.9,3330.1,3.95991]
[1735686315107,1.619,3331.6,3330.5,3.95982]
[1735686315108,1.26,3331.6,3330.5,3.95982]
[1735686315407,3.2078,3331.7,3330.9,3.2078]
[1735686315605,0.30071,3331.6,3331.2,0.30073]
[1735686315904,3.2078,3331.7,3331.0,1.7336]
[1735686316103,3.2078,3331.7,3331.6,0.30071]
[1735686316304,3.2078,3331.7,3331.0,1.7336]
[1735686316502,3.5085,3331.7,3331.1,0.30075]
[1735686316899,0.3007,3331.7,3331.4,0.30072]